[Event "GER-ch Youth U18w 2019"]
[Site "Willingen"]
[Date "2019.06.13"]
[Round "7.6"]
[White "Schiewe, Nadin"]
[Black "Reitz, Theresa"]
[Result "0-1"]
[ECO "D85"]
[WhiteElo "1608"]
[BlackElo "1976"]
[Annotator "NA"]
[PlyCount "70"]
[EventDate "2019.06.07"]
[EventType "swiss"]
[EventRounds "9"]
[EventCountry "GER"]
[SourceTitle "playchess.com"]
[Source "ChessBase"]
[SourceQuality "1"]
[TimeControl "40/5400+30:1800+30"]

1. d4 {[%emt 0:00:00]} Nf6 {[%emt 0:00:00]} 2. c4 {[%emt 0:00:00]} g6 {[%emt 0:00:00]} 3. Nc3 {[%emt 0:00:00]} d5 {[%emt 0:00:00]} 4. cxd5 {[%emt 0:00:20]} Nxd5 {[%emt 0:00:00]} 5. Bd2 {[%emt 0:00:32]} Bg7 {[%emt 0:01:02]} 6. e4 {[%emt 0:00:40]} Nxc3 {[%emt 0:00:23]} 7. Bxc3 {[%emt 0:00:10]} O-O {[%emt 0:01:10]} 8. h3 {[%emt 0:02:52]} e5 {[%emt 0:16:01]} 9. dxe5 {[%emt 0:03:46]} Qe7 {[%emt 0:00:23]} 10. Nf3 {[%emt 0:03:13]} Nc6 {[%emt 0:01:16]} 11. Qc2 {[%emt 0:02:58]} Nxe5 {[%emt 0:03:34]} 12. Nxe5 {[%emt 0:01:04]} Bxe5 {[%emt 0:00:08]} 13. Bxe5 {[%emt 0:01:51]} Qxe5 {[%emt 0:00:07]} 14. Bd3 {[%emt 0:00:29]} Qg5 {[%emt 0:02:13]} 15. f3 {[%emt 0:03:08]} Rd8 {[%emt 0:09:33]} 16. Kf2 {[%emt 0:07:48]} Be6 {[%emt 0:12:34]} 17. Rhd1 {[%emt 0:02:26]} Qa5 {[%emt 0:09:22]} 18. b3 {[%emt 0:05:29]} Qe5 {[%emt 0:13:35]} 19. Rac1 {[%emt 0:02:40]} c6 {[%emt 0:07:17]} 20. Rd2 {[%emt 0:03:53]} a5 {[%emt 0:03:32]} 21. Rcd1 {[%emt 0:02:22]} a4 {[%emt 0:01:21]} 22. Bc4 {[%emt 0:05:11]} Qc5+ {[%emt 0:02:21]} 23. Ke2 {[%emt 0:02:03]} Rxd2+ {[%emt 0:01:03]} 24. Rxd2 {[%emt 0:00:16]} Bxc4+ {[%emt 0:03:56]} 25. Qxc4 {[%emt 0:00:09]} Qg1 {[%emt 0:00:25]} 26. Rd7 {[%emt 0:04:32]} Qxg2+ {[%emt 0:00:05]} 27. Ke3 {[%emt 0:00:23]} Qg5+ {[%emt 0:02:43]} 28. Ke2 {[%emt 0:01:53]} Qf6 {[%emt 0:02:09]} 29. Rxb7 {[%emt 0:00:50]} axb3 {[%emt 0:03:07]} 30. Qxb3 {[%emt 0:01:22]} Qf4 {[%emt 0:00:09]} 31. a4 {[%emt 0:07:00]} Rd8 {[%emt 0:02:55]} 32. Qc3 {[%emt 0:03:20]} Qh2+ {[%emt 0:01:28]} 33. Ke3 {[%emt 0:02:00]} Qxh3 {[%emt 0:01:08]} 34. Qf6 {[%emt 0:02:16]} Qh6+ {[%emt 0:00:00]} 35. Qf4 {[%emt 0:02:12]} Rd3+ {[%emt 0:00:25] normal Kd4} 0-1

[Event "GER-ch Youth U18w 2019"]
[Site "Willingen"]
[Date "2019.06.13"]
[Round "7.7"]
[White "Fock, Sana"]
[Black "Koenze, Heike"]
[Result "0-1"]
[ECO "B23"]
[WhiteElo "1796"]
[BlackElo "1919"]
[Annotator "NA"]
[PlyCount "128"]
[EventDate "2019.06.07"]
[EventType "swiss"]
[EventRounds "9"]
[EventCountry "GER"]
[SourceTitle "playchess.com"]
[Source "ChessBase"]
[SourceQuality "1"]
[TimeControl "40/5400+30:1800+30"]

1. e4 {[%emt 0:00:00]} c5 {[%emt 0:00:00]} 2. Nc3 {[%emt 0:00:00]} Nc6 {[%emt 0:00:15]} 3. f4 {[%emt 0:00:00]} e6 {[%emt 0:01:33]} 4. Nf3 {[%emt 0:00:25]} d5 {[%emt 0:00:43]} 5. Bb5 {[%emt 0:00:55]} Nge7 {[%emt 0:02:09]} 6. exd5 {[%emt 0:00:58]} exd5 {[%emt 0:00:23]} 7. Qe2 {[%emt 0:00:19]} Bg4 {[%emt 0:04:10]} 8. Bxc6+ {[%emt 0:02:48]} bxc6 {[%emt 0:00:08]} 9. O-O {[%emt 0:01:16]} Qd6 {[%emt 0:00:54]} 10. d3 {[%emt 0:01:46]} g6 {[%emt 0:03:50]} 11. Qe1 {[%emt 0:05:48]} Bxf3 {[%emt 0:03:51]} 12. Rxf3 {[%emt 0:00:11]} Bg7 {[%emt 0:00:08]} 13. Na4 {[%emt 0:15:05]} O-O {[%emt 0:03:01]} 14. Be3 {[%emt 0:06:16]} d4 {[%emt 0:00:39]} 15. Bd2 {[%emt 0:00:35]} Nf5 {[%emt 0:01:29]} 16. Kh1 {[%emt 0:07:16]} Rae8 {[%emt 0:06:41]} 17. Qf2 {[%emt 0:01:22]} c4 {[%emt 0:03:25]} 18. dxc4 {[%emt 0:08:18]} Ne3 {[%emt 0:00:34]} 19. Rc1 {[%emt 0:10:57]} Nxc4 {[%emt 0:00:47]} 20. b3 {[%emt 0:06:37]} Nxd2 {[%emt 0:02:36]} 21. Qxd2 {[%emt 0:00:08]} Re6 {[%emt 0:03:11]} 22. Nb2 {[%emt 0:07:23]} Rfe8 {[%emt 0:04:42]} 23. Nc4 {[%emt 0:02:39]} Qe7 {[%emt 0:01:29]} 24. Ne5 {[%emt 0:02:52]} Bxe5 {[%emt 0:00:18]} 25. fxe5 {[%emt 0:00:05]} c5 {[%emt 0:00:24]} 26. Re1 {[%emt 0:05:39]} Rxe5 {[%emt 0:00:23]} 27. Rxe5 {[%emt 0:00:27]} Qxe5 {[%emt 0:00:07]} 28. Kg1 {[%emt 0:01:45]} Qe1+ {[%emt 0:05:29]} 29. Qxe1 {[%emt 0:00:21]} Rxe1+ {[%emt 0:00:11]} 30. Rf1 {[%emt 0:00:32]} Re3 {[%emt 0:00:17]} 31. Kf2 {[%emt 0:03:29]} Kg7 {[%emt 0:01:19]} 32. Rd1 {[%emt 0:01:47]} f5 {[%emt 0:01:20]} 33. b4 {[%emt 0:01:35]} cxb4 {[%emt 0:02:20]} 34. Rxd4 {[%emt 0:00:22]} Rc3 {[%emt 0:00:23]} 35. Rd7+ {[%emt 0:00:37]} Kf6 {[%emt 0:00:47]} 36. Rxa7 {[%emt 0:00:13]} Rxc2+ {[%emt 0:00:08]} 37. Kf3 {[%emt 0:00:25]} h6 {[%emt 0:00:43]} 38. Ra4 {[%emt 0:03:06]} Rb2 {[%emt 0:00:26]} 39. Ra5 {[%emt 0:02:57]} g5 {[%emt 0:05:45]} 40. h3 {[%emt 0:01:59]} f4 {[%emt 0:15:14]} 41. h4 {[%emt 0:06:47]} gxh4 {[%emt 0:01:50]} 42. Kxf4 {[%emt 0:01:26]} Rxg2 {[%emt 0:00:10]} 43. Rh5 {[%emt 0:13:32]} Kg6 {[%emt 0:03:02]} 44. Rxh4 {[%emt 0:00:06]} Rxa2 {[%emt 0:00:08]} 45. Rg4+ {[%emt 0:00:27]} Kh7 {[%emt 0:00:47]} 46. Ke3 {[%emt 0:02:18]} b3 {[%emt 0:00:23]} 47. Rb4 {[%emt 0:00:06]} Rb2 {[%emt 0:00:06]} 48. Kd3 {[%emt 0:00:44]} h5 {[%emt 0:00:45]} 49. Kc3 {[%emt 0:02:44]} Rb1 {[%emt 0:00:11]} 50. Rb6 {[%emt 0:01:22]} Kg7 {[%emt 0:00:09]} 51. Rd6 {[%emt 0:00:57]} h4 {[%emt 0:06:27]} 52. Rd4 {[%emt 0:01:31]} h3 {[%emt 0:00:09]} 53. Rh4 {[%emt 0:01:57]} Rh1 {[%emt 0:00:08]} 54. Kxb3 {[%emt 0:00:03]} Kg6 {[%emt 0:00:12]} 55. Kc2 {[%emt 0:00:27]} Kg5 {[%emt 0:00:06]} 56. Rh8 {[%emt 0:00:05]} Kg4 {[%emt 0:00:23]} 57. Rg8+ {[%emt 0:00:53]} Kf3 {[%emt 0:00:15]} 58. Rf8+ {[%emt 0:00:19]} Kg2 {[%emt 0:00:11]} 59. Rg8+ {[%emt 0:00:10]} Kh2 {[%emt 0:00:08]} 60. Kb2 {[%emt 0:00:23]} Rg1 {[%emt 0:00:17]} 61. Rh8 {[%emt 0:00:36]} Kg2 {[%emt 0:00:21]} 62. Rg8+ {[%emt 0:00:18]} Kh1 {[%emt 0:00:16]} 63. Rh8 {[%emt 0:00:18]} h2 {[%emt 0:00:07]} 64. Kb3 {[%emt 0:00:49]} Rg3+ {[%emt 0:00:17] normal} 0-1

[Event "GER-ch Youth U18w 2019"]
[Site "Willingen"]
[Date "2019.06.13"]
[Round "7.8"]
[White "Alferova, Ekaterina"]
[Black "Browning, Rebecca"]
[Result "0-1"]
[ECO "D00"]
[WhiteElo "1597"]
[BlackElo "1923"]
[Annotator "NA"]
[PlyCount "67"]
[EventDate "2019.06.07"]
[EventType "swiss"]
[EventRounds "9"]
[EventCountry "GER"]
[SourceTitle "playchess.com"]
[Source "ChessBase"]
[SourceQuality "1"]
[TimeControl "40/5400+30:1800+30"]

1. d4 {[%emt 0:00:00]} d5 {[%emt 0:00:00]} 2. Bf4 {[%emt 0:00:00]} c5 {[%emt 0:00:00]} 3. dxc5 {[%emt 0:00:52]} Nc6 {[%emt 0:00:00]} 4. e3 {[%emt 0:00:32]} e5 {[%emt 0:00:00]} 5. Bg3 {[%emt 0:00:09]} Bxc5 {[%emt 0:07:43]} 6. c3 {[%emt 0:00:56]} Nf6 {[%emt 0:01:09]} 7. h3 {[%emt 0:00:37]} O-O {[%emt 0:02:00]} 8. Nf3 {[%emt 0:00:18]} Bd6 {[%emt 0:01:54]} 9. Nbd2 {[%emt 0:03:24]} Bf5 {[%emt 0:04:06]} 10. Be2 {[%emt 0:01:31]} a6 {[%emt 0:03:44]} 11. O-O {[%emt 0:01:04]} h6 {[%emt 0:01:58]} 12. Bh2 {[%emt 0:03:39]} Qc7 {[%emt 0:01:32]} 13. Qc1 {[%emt 0:02:08]} Rad8 {[%emt 0:02:42]} 14. Re1 {[%emt 0:02:04]} Bh7 {[%emt 0:01:13]} 15. Rf1 {[%emt 0:06:51]} Rfe8 {[%emt 0:01:16]} 16. Nb3 {[%emt 0:05:13]} Kh8 {[%emt 0:09:42]} 17. Bd1 {[%emt 0:07:03]} Bd3 {[%emt 0:08:07]} 18. Re1 {[%emt 0:00:06]} e4 {[%emt 0:00:40]} 19. Bxd6 {[%emt 0:00:21]} Rxd6 {[%emt 0:00:40]} 20. Nfd4 {[%emt 0:00:14]} Nd7 {[%emt 0:02:00]} 21. Be2 {[%emt 0:01:31]} Nce5 {[%emt 0:01:20]} 22. Rf1 {[%emt 0:03:50]} Rg6 {[%emt 0:00:56]} 23. Bxd3 {[%emt 0:02:25]} Nxd3 {[%emt 0:00:37]} 24. Qd2 {[%emt 0:02:34]} N7e5 {[%emt 0:00:11]} 25. Rab1 {[%emt 0:02:28]} Qe7 {[%emt 0:10:34]} 26. Nc1 {[%emt 0:04:00]} Qh4 {[%emt 0:03:00]} 27. Nxd3 {[%emt 0:01:36]} Nxd3 {[%emt 0:00:25]} 28. Kh2 {[%emt 0:03:19]} Re5 {[%emt 0:04:59]} 29. g3 {[%emt 0:07:14]} Qd8 {[%emt 0:04:54]} 30. Nf3 {[%emt 0:05:52]} Rh5 {[%emt 0:06:14]} 31. Nh4 {[%emt 0:04:00]} Rxh4 {[%emt 0:05:50]} 32. gxh4 {[%emt 0:01:01]} Qxh4 {[%emt 0:00:03]} 33. Qc2 {[%emt 0:20:27]} Ne5 {[%emt 0:00:11]} 34. Qc1 {normal} 0-1

[Event "GER-ch Youth U18w 2019"]
[Site "Willingen"]
[Date "2019.06.13"]
[Round "7.9"]
[White "Mundt, Alexandra"]
[Black "Fuchs, Emily"]
[Result "1-0"]
[ECO "A05"]
[WhiteElo "1797"]
[BlackElo "1384"]
[Annotator "NA RC"]
[PlyCount "118"]
[EventDate "2019.06.07"]
[EventType "swiss"]
[EventRounds "9"]
[EventCountry "GER"]
[SourceTitle "playchess.com"]
[Source "ChessBase"]
[SourceQuality "1"]
[TimeControl "40/5400+30:1800+30"]

1. Nf3 {[%emt 0:00:00]} Nf6 {[%emt 0:00:06]} 2. c4 {[%emt 0:00:00]} e6 {[%emt 0:00:14]} 3. g3 {[%emt 0:00:23]} b6 {[%emt 0:01:19]} 4. Bg2 {[%emt 0:00:06]} Bb7 {[%emt 0:00:26]} 5. b3 {[%emt 0:00:19]} Be7 {[%emt 0:10:25]} 6. Bb2 {[%emt 0:00:10]} c5 {[%emt 0:04:54]} 7. O-O {[%emt 0:00:29]} Nc6 {[%emt 0:03:34]} 8. e3 {[%emt 0:01:24]} d5 {[%emt 0:03:40]} 9. cxd5 {[%emt 0:05:57]} exd5 {[%emt 0:03:10]} 10. d4 {[%emt 0:01:07]} O-O {[%emt 0:09:49]} 11. Nbd2 {[%emt 0:08:51]} Rc8 {[%emt 0:04:49]} 12. a3 {[%emt 0:07:52]} Re8 {[%emt 0:11:26]} 13. Qe2 {[%emt 0:04:30]} Qc7 {[%emt 0:14:07]} 14. dxc5 {[%emt 0:14:11]} Bxc5 {[%emt 0:00:48]} 15. b4 {[%emt 0:01:03]} Bd6 {[%emt 0:05:03]} 16. Rac1 {[%emt 0:02:05]} Qd7 {[%emt 0:01:03]} 17. Ng5 {[%emt 0:06:17]} Be5 {[%emt 0:05:16]} 18. Bh3 {[%emt 0:06:25]} Qd6 {[%emt 0:06:19]} 19. Bxe5 {[%emt 0:03:40]} Qxe5 {[%emt 0:03:51]} 20. Bxc8 {[%emt 0:03:53]} Rxc8 {[%emt 0:00:39]} 21. Ngf3 {[%emt 0:05:05]} Qe7 {[%emt 0:02:28]} 22. Qd3 {[%emt 0:02:52]} Rd8 {[%emt 0:01:06]} 23. b5 {[%emt 0:07:02]} Ne5 {[%emt 0:02:05]} 24. Nxe5 {[%emt 0:00:46]} Qxe5 {[%emt 0:00:12]} 25. Nf3 {[%emt 0:00:27]} Qe7 {[%emt 0:02:37]} 26. Nd4 {[%emt 0:01:12]} Ne4 {[%emt 0:00:36]} 27. Nc6 {[%emt 0:04:32]} Bxc6 {[%emt 0:00:11]} 28. Rxc6 {[%emt 0:00:21]} Nc5 {[%emt 0:00:17]} 29. Qf5 {[%emt 0:00:13]} h6 {[%emt 0:02:01]} 30. Rc8 {[%emt 0:00:53]} Rxc8 {[%emt 0:00:10]} 31. Qxc8+ {[%emt 0:00:03]} Qf8 {[%emt 0:00:23]} 32. Qxf8+ {[%emt 0:08:37]} Kxf8 {[%emt 0:00:06]} 33. Rd1 {[%emt 0:00:08]} Ke7 {[%emt 0:00:27]} 34. Rxd5 {[%emt 0:00:13]} g6 {[%emt 0:01:44]} 35. f3 {[%emt 0:01:38]} f6 {[%emt 0:01:25]} 36. Kf2 {[%emt 0:01:04]} Nd7 {[%emt 0:00:11]} 37. Ke2 {[%emt 0:02:04]} Ne5 {[%emt 0:00:32]} 38. Rxe5+ {[%emt 0:01:36]} fxe5 {[%emt 0:00:07]} 39. Kd3 {[%emt 0:00:03]} Kd6 {[%emt 0:00:38]} 40. Kc4 {[%emt 0:01:04]} Ke6 {[%emt 0:00:46]} 41. h4 {[%emt 0:15:40]} Kd6 {[%emt 0:16:05]} 42. f4 {[%emt 0:04:47]} h5 {[%emt 0:01:24]} 43. e4 {[%emt 0:03:25]} Ke6 {[%emt 0:01:00]} 44. a4 {[%emt 0:00:39]} Kd6 {[%emt 0:01:09]} 45. f5 {[%emt 0:05:57]} gxf5 {[%emt 0:01:03]} 46. exf5 {[%emt 0:00:03]} e4 {[%emt 0:04:58]} 47. Kd4 {[%emt 0:00:13]} e3 {[%emt 0:00:06]} 48. Kxe3 {[%emt 0:00:03]} Ke5 {[%emt 0:00:23]} 49. f6 {[%emt 0:00:08]} Kxf6 {[%emt 0:00:12]} 50. Kf4 {[%emt 0:00:03]} Ke6 {[%emt 0:01:09]} 51. Kg5 {[%emt 0:01:04]} Kd5 {[%emt 0:00:08]} 52. Kxh5 {[%emt 0:00:04]} Kc4 {[%emt 0:00:06]} 53. g4 {[%emt 0:00:07]} Kb4 {[%emt 0:00:39]} 54. g5 {[%emt 0:00:03]} Kxa4 {[%emt 0:00:14]} 55. g6 {[%emt 0:00:02]} Kxb5 {[%emt 0:00:07]} 56. g7 {[%emt 0:00:08]} a5 {[%emt 0:00:16]} 57. g8=Q {[%emt 0:00:05]} a4 {[%emt 0:00:18]} 58. Kg5 {[%emt 0:01:31]} Kb4 {[%emt 0:02:34]} 59. h5 {[%emt 0:00:40]} a3 {[%emt 0:00:19] normal} 1-0

[Event "GER-ch Youth U18w 2019"]
[Site "Willingen"]
[Date "2019.06.13"]
[Round "7.10"]
[White "Trams, Emma Joe"]
[Black "Tampe, Friederike"]
[Result "1/2-1/2"]
[ECO "C84"]
[WhiteElo "1418"]
[BlackElo "1512"]
[Annotator "NA"]
[PlyCount "90"]
[EventDate "2019.06.07"]
[EventType "swiss"]
[EventRounds "9"]
[EventCountry "GER"]
[SourceTitle "playchess.com"]
[Source "ChessBase"]
[SourceQuality "1"]
[TimeControl "40/5400+30:1800+30"]

1. e4 {[%emt 0:00:00]} e5 {[%emt 0:00:00]} 2. Nf3 {[%emt 0:00:00]} Nc6 {[%emt 0:00:00]} 3. Bb5 {[%emt 0:00:00]} a6 {[%emt 0:00:00]} 4. Ba4 {[%emt 0:00:00]} Nf6 {[%emt 0:00:00]} 5. O-O {[%emt 0:00:00]} Be7 {[%emt 0:00:00]} 6. d3 {[%emt 0:00:05]} b5 {[%emt 0:00:08]} 7. Bb3 {[%emt 0:00:05]} d6 {[%emt 0:00:05]} 8. h3 {[%emt 0:00:07]} Na5 {[%emt 0:00:09]} 9. c3 {[%emt 0:00:11]} Nxb3 {[%emt 0:00:10]} 10. Qxb3 {[%emt 0:00:09]} O-O {[%emt 0:00:08]} 11. Re1 {[%emt 0:00:17]} Bb7 {[%emt 0:00:18]} 12. Nbd2 {[%emt 0:00:13]} Re8 {[%emt 0:00:17]} 13. Nf1 {[%emt 0:00:14]} Bf8 {[%emt 0:06:17]} 14. Ng3 {[%emt 0:00:35]} g6 {[%emt 0:00:08]} 15. Bd2 {[%emt 0:01:47]} c5 {[%emt 0:02:29]} 16. c4 {[%emt 0:00:50]} Bc6 {[%emt 0:07:52]} 17. Qc2 {[%emt 0:01:12]} Rb8 {[%emt 0:04:08]} 18. b3 {[%emt 0:01:17]} Qc7 {[%emt 0:07:14]} 19. a4 {[%emt 0:02:18]} Rb7 {[%emt 0:06:17]} 20. Ra3 {[%emt 0:04:01]} Reb8 {[%emt 0:02:45]} 21. Rea1 {[%emt 0:00:41]} bxa4 {[%emt 0:01:43]} 22. bxa4 {[%emt 0:00:14]} Rb2 {[%emt 0:08:03]} 23. Qd1 {[%emt 0:01:34]} Qb7 {[%emt 0:00:56]} 24. Bc3 {[%emt 0:02:11]} Rb3 {[%emt 0:07:56]} 25. Nd2 {[%emt 0:01:28]} Rxa3 {[%emt 0:00:07]} 26. Rxa3 {[%emt 0:00:11]} Qd7 {[%emt 0:01:25]} 27. a5 {[%emt 0:01:08]} Ne8 {[%emt 0:02:40]} 28. Nb1 {[%emt 0:04:32]} Nc7 {[%emt 0:01:34]} 29. Bd2 {[%emt 0:01:25]} Ne6 {[%emt 0:00:54]} 30. Ne2 {[%emt 0:01:21]} Qb7 {[%emt 0:07:53]} 31. Nbc3 {[%emt 0:01:37]} Nd4 {[%emt 0:05:49]} 32. Nc1 {[%emt 0:04:22]} f5 {[%emt 0:04:11]} 33. f3 {[%emt 0:01:15]} f4 {[%emt 0:02:42]} 34. Ra1 {[%emt 0:02:21]} Qc8 {[%emt 0:00:16]} 35. Nd5 {[%emt 0:02:00]} g5 {[%emt 0:02:50]} 36. Be1 {[%emt 0:01:56]} Kf7 {[%emt 0:06:47]} 37. Ne2 {[%emt 0:03:51]} Be7 {[%emt 0:06:14]} 38. Nxd4 {[%emt 0:01:31]} exd4 {[%emt 0:00:15]} 39. Nxe7 {[%emt 0:00:31]} Kxe7 {[%emt 0:00:28]} 40. Rb1 {[%emt 0:01:05]} Kf6 {[%emt 0:01:24]} 41. Rxb8 {[%emt 0:34:48]} Qxb8 {[%emt 0:30:06]} 42. Qc2 {[%emt 0:00:19]} Bd7 {[%emt 0:01:44]} 43. Kf2 {[%emt 0:01:07]} h5 {[%emt 0:03:59]} 44. Kg1 {[%emt 0:03:04]} Ke5 {[%emt 0:00:00]} 45. Kf2 {[%emt 0:00:00]} Qb7 {normal} 1/2-1/2

[Event "GER-ch Youth U18w 2019"]
[Site "Willingen"]
[Date "2019.06.13"]
[Round "7.11"]
[White "Gauchel, Verena"]
[Black "Kuemmel, Tina"]
[Result "1-0"]
[ECO "A48"]
[WhiteElo "1534"]
[BlackElo "1446"]
[Annotator "NA RC"]
[PlyCount "64"]
[EventDate "2019.06.07"]
[EventType "swiss"]
[EventRounds "9"]
[EventCountry "GER"]
[SourceTitle "playchess.com"]
[Source "ChessBase"]
[SourceQuality "1"]
[TimeControl "40/5400+30:1800+30"]

1. d4 {[%emt 0:00:00]} Nf6 {[%emt 0:00:00]} 2. Nf3 {[%emt 0:00:00]} g6 {[%emt 0:00:00]} 3. c4 {[%emt 0:00:00]} Bg7 {[%emt 0:00:00]} 4. Nc3 {[%emt 0:00:00]} O-O {[%emt 0:00:00]} 5. Bg5 {[%emt 0:00:06]} d6 {[%emt 0:00:12]} 6. e3 {[%emt 0:00:24]} Nbd7 {[%emt 0:00:05]} 7. Be2 {[%emt 0:00:41]} c6 {[%emt 0:00:20]} 8. O-O {[%emt 0:00:47]} a6 {[%emt 0:00:12]} 9. a4 {[%emt 0:05:22]} a5 {[%emt 0:10:12]} 10. Qc2 {[%emt 0:10:08]} b6 {[%emt 0:06:37]} 11. Rad1 Ba6 {[%emt 0:01:47]} 12. e4 {[%emt 0:08:52]} Qc7 {[%emt 0:13:47]} 13. Rd2 {[%emt 0:15:37]} Rfe8 {[%emt 0:01:36]} 14. Rfd1 {[%emt 0:01:16]} h6 {[%emt 0:02:57]} 15. Bh4 {[%emt 0:01:14]} c5 {[%emt 0:01:46]} 16. d5 {[%emt 0:07:13]} Nh5 {[%emt 0:00:59]} 17. Ne1 {[%emt 0:01:43]} Nf4 {[%emt 0:10:37]} 18. b3 {[%emt 0:04:26]} Ne5 {[%emt 0:01:07]} 19. Bg3 {[%emt 0:01:40]} Nxe2+ {[%emt 0:04:27]} 20. Rxe2 {[%emt 0:04:05]} g5 21. h3 {[%emt 0:04:18]} Bc8 {[%emt 0:09:04]} 22. Nd3 {[%emt 0:00:45]} Nxd3 23. Qxd3 f5 {[%emt 0:04:24]} 24. Nb5 {[%emt 0:02:11]} Qb8 {[%emt 0:01:49]} 25. exf5 {[%emt 0:00:56]} Bd7 {[%emt 0:05:55]} 26. Na3 {[%emt 0:09:58]} Qc8 27. h4 {[%emt 0:09:02]} Bxf5 {[%emt 0:01:41]} 28. Qd2 {[%emt 0:02:48]} Bf6 29. hxg5 hxg5 {[%emt 0:05:30]} 30. Rde1 {[%emt 0:02:18]} Qd7 {[%emt 0:02:17]} 31. Nb5 {[%emt 0:00:39]} Rf8 {[%emt 0:03:36]} 32. f3 {[%emt 0:02:25]} Kg7 {[%emt 0:04:40] normal} 1-0

[Event "GER-ch Youth U18w 2019"]
[Site "Willingen"]
[Date "2019.06.13"]
[Round "7.12"]
[White "Peters, Jenna Maria Lara"]
[Black "Schneider, Xenia"]
[Result "0-1"]
[ECO "B20"]
[WhiteElo "1594"]
[BlackElo "1364"]
[Annotator "NA"]
[PlyCount "38"]
[EventDate "2019.06.07"]
[EventType "swiss"]
[EventRounds "9"]
[EventCountry "GER"]
[SourceTitle "playchess.com"]
[Source "ChessBase"]
[SourceQuality "1"]
[TimeControl "40/5400+30:1800+30"]

1. e4 {[%emt 0:00:00]} c5 {[%emt 0:00:00]} 2. b3 {[%emt 0:00:00]} b6 {[%emt 0:00:03]} 3. Bb2 {[%emt 0:00:12]} Bb7 {[%emt 0:00:32]} 4. Nc3 {[%emt 0:00:23]} e6 {[%emt 0:02:25]} 5. Nf3 Ne7 {[%emt 0:00:17]} 6. d4 {[%emt 0:09:41]} cxd4 {[%emt 0:07:20]} 7. Nxd4 {[%emt 0:11:11]} a6 {[%emt 0:02:13]} 8. Bd3 {[%emt 0:01:59]} Nbc6 {[%emt 0:00:11]} 9. Nxc6 {[%emt 0:00:18]} Nxc6 {[%emt 0:19:42]} 10. O-O {[%emt 0:22:42]} Qh4 {[%emt 0:07:31]} 11. Qd2 {[%emt 0:01:21]} Bd6 {[%emt 0:07:56]} 12. g3 {[%emt 0:02:37]} Qh3 {[%emt 0:09:39]} 13. Na4 {[%emt 0:02:19]} Ne5 {[%emt 0:03:01]} 14. f4 {[%emt 0:00:45]} Nxd3 {[%emt 0:02:41]} 15. Qxd3 {[%emt 0:08:09]} b5 {[%emt 0:04:05]} 16. Qxd6 {[%emt 0:03:05]} Bxe4 {[%emt 0:02:51]} 17. Rf2 {[%emt 0:01:57]} bxa4 18. Bxg7 Rg8 {[%emt 0:05:17]} 19. Bf6 {[%emt 0:01:17]} Rxg3+ {normal} 0-1

[Event "GER-ch Youth U18w 2019"]
[Site "Willingen"]
[Date "2019.06.13"]
[Round "7.13"]
[White "Kadach, Maria"]
[Black "Gesell, Patricia"]
[Result "1-0"]
[ECO "D00"]
[WhiteElo "1448"]
[BlackElo "1046"]
[Annotator "NA"]
[PlyCount "39"]
[EventDate "2019.06.07"]
[EventType "swiss"]
[EventRounds "9"]
[EventCountry "GER"]
[SourceTitle "playchess.com"]
[Source "ChessBase"]
[SourceQuality "1"]
[TimeControl "40/5400+30:1800+30"]

1. d4 {[%emt 0:00:00]} d5 {[%emt 0:00:00]} 2. Bf4 {[%emt 0:00:00]} Bf5 {[%emt 0:00:04]} 3. e3 Nf6 {[%emt 0:01:07]} 4. Nd2 {[%emt 0:00:00]} e6 {[%emt 0:02:32]} 5. c3 {[%emt 0:00:25]} c5 6. Ngf3 {[%emt 0:00:45]} c4 {[%emt 0:03:24]} 7. Be2 {[%emt 0:01:02]} Bd6 8. Bg3 {[%emt 0:00:07]} Bxg3 {[%emt 0:04:17]} 9. hxg3 {[%emt 0:01:11]} h6 {[%emt 0:02:37]} 10. Ne5 {[%emt 0:02:45]} Nbd7 {[%emt 0:04:07]} 11. f4 {[%emt 0:06:10]} Qc7 {[%emt 0:09:42]} 12. g4 {[%emt 0:09:06]} Bg6 {[%emt 0:00:18]} 13. Nxg6 {[%emt 0:01:49]} fxg6 {[%emt 0:01:36]} 14. g5 {[%emt 0:10:51]} Ng8 {[%emt 0:03:03]} 15. Nf3 {[%emt 0:05:55]} Ne7 {[%emt 0:01:20]} 16. g4 {[%emt 0:01:38]} O-O-O {[%emt 0:07:25]} 17. Kd2 {[%emt 0:17:29]} h5 18. Nh4 {[%emt 0:00:05]} hxg4 {[%emt 0:05:21]} 19. Bxg4 {[%emt 0:03:00]} Qd6 20. Qc2 {normal} 1-0

[Event "GER-ch Youth U18w 2019"]
[Site "Willingen"]
[Date "2019.06.14"]
[Round "8.1"]
[White "Schulze, Lara"]
[Black "Moenster, Madita"]
[Result "1/2-1/2"]
[ECO "B24"]
[WhiteElo "2160"]
[BlackElo "1994"]
[Annotator "NA"]
[PlyCount "66"]
[EventDate "2019.06.07"]
[EventType "swiss"]
[EventRounds "9"]
[EventCountry "GER"]
[SourceTitle "playchess.com"]
[Source "ChessBase"]
[SourceQuality "1"]
[TimeControl "40/5400+30:1800+30"]

1. e4 {[%emt 0:00:00]} c5 {[%emt 0:00:00]} 2. Nc3 {[%emt 0:00:00]} Nc6 {[%emt 0:00:09]} 3. Nf3 {[%emt 0:00:00]} d6 {[%emt 0:00:43]} 4. d4 {[%emt 0:00:15]} cxd4 {[%emt 0:00:14]} 5. Nxd4 {[%emt 0:00:05]} e5 {[%emt 0:00:46]} 6. Ndb5 {[%emt 0:00:46]} a6 {[%emt 0:00:23]} 7. Na3 {[%emt 0:00:04]} Be7 {[%emt 0:00:19]} 8. Nc4 {[%emt 0:06:12]} b5 {[%emt 0:01:25]} 9. Ne3 {[%emt 0:00:16]} Nf6 {[%emt 0:00:43]} 10. Bd3 {[%emt 0:00:24]} O-O {[%emt 0:00:39]} 11. O-O {[%emt 0:01:02]} Rb8 {[%emt 0:07:47]} 12. a4 {[%emt 0:13:11]} Nb4 {[%emt 0:12:41]} 13. axb5 {[%emt 0:16:35]} axb5 {[%emt 0:05:49]} 14. Bxb5 {[%emt 0:11:06]} Nxe4 {[%emt 0:16:40]} 15. Qe2 {[%emt 0:09:53]} Nxc3 {[%emt 0:08:44]} 16. bxc3 {[%emt 0:00:13]} Qb6 {[%emt 0:00:21]} 17. cxb4 {[%emt 0:13:38]} Qxb5 {[%emt 0:00:09]} 18. Qxb5 {[%emt 0:00:42]} Rxb5 {[%emt 0:00:07]} 19. c4 {[%emt 0:05:51]} Rxb4 {[%emt 0:06:40]} 20. Nd5 {[%emt 0:00:09]} Rb7 {[%emt 0:00:29]} 21. Ba3 {[%emt 0:03:39]} Rd8 {[%emt 0:04:07]} 22. Rad1 {[%emt 0:07:31]} Kf8 {[%emt 0:08:54]} 23. Rfe1 {[%emt 0:03:41]} Be6 {[%emt 0:03:25]} 24. Nxe7 {[%emt 0:03:52]} Kxe7 {[%emt 0:11:09]} 25. Rxe5 {[%emt 0:00:10]} Rb3 {[%emt 0:00:41]} 26. Re3 {[%emt 0:01:34]} Rxe3 {[%emt 0:00:23]} 27. fxe3 {[%emt 0:00:01]} Bxc4 {[%emt 0:00:19]} 28. Bb2 {[%emt 0:00:51]} g6 {[%emt 0:01:07]} 29. g4 {[%emt 0:00:40]} f6 {[%emt 0:05:15]} 30. Ra1 {[%emt 0:00:39]} Rd7 {[%emt 0:01:38]} 31. Ra4 {[%emt 0:01:10]} d5 {[%emt 0:01:44]} 32. Bd4 {[%emt 0:00:16]} Rb7 {[%emt 0:01:22]} 33. Ra7 {[%emt 0:01:05]} Rxa7 {[%emt 0:00:46] normal} 1/2-1/2